fUST/lending_fUST_20250730
["ID","MTS","AMOUNT","RATE_DAILY","PERIOD"]
[376092471,1753860642049,-530.74865339,0.00019124,2]
[376092472,1753860642058,-460.0,0.00019124,2]
[376092475,1753860642068,-460.0,0.00019124,2]
[376092477,1753860642078,-460.0,0.00019124,2]
[376092479,1753860642089,-460.0,0.00019124,2]
[376092481,1753860642099,-460.0,0.00019124,2]
[376092482,1753860642108,-460.0,0.00019124,2]
[376092484,1753860642120,-512.2,0.00019124,2]
[376092486,1753860642130,-460.0,0.00019125,2]
[376092488,1753860642140,-500.0,0.00019125,2]
[376092490,1753860642150,-1321.15,0.00019126,2]
[376092492,1753860642160,-460.0,0.00019126,2]
[376092494,1753860642170,-460.0,0.00019126,2]
[376092497,1753860642179,-788.07,0.00019126,2]
[376092498,1753860642189,-460.0,0.00019126,2]
[376092501,1753860642199,-718.99,0.00019126,2]
[376092502,1753860642208,-500.0,0.00019127,2]
[376092505,1753860642219,-7785.89864797,0.00019202,2]
[376092507,1753860642228,-200.0,0.00019224,15]
[376092509,1753860642238,-200.0,0.00019224,15]
[376092511,1753860642248,-200.0,0.00019224,15]
[376092513,1753860642259,-200.0,0.00019224,15]
[376092514,1753860642271,-200.0,0.00019224,15]
[376092517,1753860642283,-200.0,0.00019224,15]
[376092519,1753860642292,-200.0,0.00019224,15]
[376092521,1753860642303,-200.0,0.00019224,15]
[376092523,1753860642312,-200.0,0.00019224,15]
[376092525,1753860642322,-200.0,0.00019224,15]
[376092527,1753860642332,-200.0,0.00019224,15]
[376092529,1753860642343,-200.0,0.00019224,15]
[376092531,1753860642352,-200.0,0.00019224,15]
[376092533,1753860642362,-200.0,0.00019224,15]
[376092535,1753860642373,-200.0,0.00019224,15]
[376092537,1753860642382,-200.0,0.00019224,15]
[376092539,1753860642392,-500.70695849,0.00019317,2]
[376092541,1753860642402,-501.03740505,0.00019317,2]
[376092543,1753860642412,-500.0,0.00019317,2]
[376092545,1753860642422,-500.0,0.00019317,2]
[376092547,1753860642431,-842.99,0.00019396,2]
[376092549,1753860642441,-705.13,0.00019396,2]
[376092551,1753860642450,-788.73,0.00019396,2]
[376092553,1753860642459,-462.86,0.00019396,2]
[376092555,1753860642468,-460.0,0.00019396,2]
[376092557,1753860642478,-1445.48,0.00019397,2]
[376092559,1753860642488,-460.0,0.00019397,2]
[376092561,1753860642497,-649.86,0.00019397,2]
[376092563,1753860642507,-579.06736177,0.00019397,2]
[376092565,1753860642516,-463.67,0.00019397,2]
[376092567,1753860642526,-460.0,0.00019397,2]
[376092569,1753860642535,-460.0,0.00019398,2]
[376092571,1753860642544,-460.0,0.00019398,2]
[376092573,1753860642554,-544.04902487,0.00019398,2]
[376092575,1753860642564,-460.0,0.00019398,2]
[376092577,1753860642573,-269.05636432,0.00019398,2]
[376092579,1753860642582,-460.0,0.00019398,2]
[376092581,1753860642592,-460.0,0.00019398,2]
[376092583,1753860642602,-460.0,0.00019398,2]
[376092584,1753860642611,-512.2,0.00019398,2]
[376092586,1753860642622,-473.21117086,0.00019399,2]
[376092588,1753860642631,-500.0,0.00019399,2]
[376092590,1753860642641,-1321.15,0.000194,2]
[376092592,1753860642650,-460.0,0.000194,2]
[376092594,1753860642659,-460.0,0.000194,2]
[376092596,1753860642669,-788.07,0.000194,2]
[376092598,1753860642679,-460.0,0.000194,2]
[376092600,1753860642688,-718.99,0.000194,2]
[376092602,1753860642698,-501.7862434,0.00019527,2]
[376092604,1753860642708,-500.0,0.00019538,2]
[376092606,1753860642717,-500.0,0.00019592,2]
[376092608,1753860642727,-500.0,0.00019592,2]
[376092610,1753860642736,-151.0,0.00019593,2]
[376092612,1753860642745,-151.0,0.00019593,2]
[376092614,1753860642755,-151.0,0.00019593,2]
[376092616,1753860642764,-151.0,0.00019593,2]
[376092618,1753860642773,-151.0,0.00019593,2]
[376092620,1753860642783,-151.0,0.00019593,2]
[376092622,1753860642793,-151.0,0.00019593,2]
[376092624,1753860642802,-274.17152796,0.00019593,2]
[376092626,1753860642812,-151.0,0.00019593,2]
[376092628,1753860642822,-151.0,0.00019593,2]
[376092630,1753860642832,-151.0,0.00019593,2]
[376092632,1753860642844,-151.0,0.00019593,2]
[376092634,1753860642853,-151.0,0.00019593,2]
[376092636,1753860642863,-151.0,0.00019593,2]
[376092638,1753860642875,-151.0,0.00019593,2]
[376092640,1753860642885,-151.0,0.00019593,2]
[376092642,1753860642895,-314.89274864,0.00019593,2]
[376092644,1753860642905,-151.0,0.00019593,2]
[376092646,1753860642915,-151.0,0.00019593,2]
[376092648,1753860642924,-151.0,0.00019593,2]
[376092650,1753860642934,-151.0,0.00019593,2]
[376092652,1753860642943,-151.0,0.00019593,2]
[376092654,1753860642952,-151.0,0.00019593,2]
[376092656,1753860642962,-151.0,0.00019593,2]
[376092658,1753860642972,-151.0,0.00019593,2]
[376092660,1753860642981,-151.0,0.00019593,2]
[376092662,1753860642991,-842.99,0.0001967,2]
[376092664,1753860643000,-705.13,0.0001967,2]
[376092666,1753860643010,-788.73,0.0001967,2]
[376092668,1753860643019,-462.86,0.0001967,2]
[376092670,1753860643029,-460.0,0.0001967,2]
[376092672,1753860643039,-1445.48,0.00019671,2]
[376092674,1753860643048,-460.0,0.00019671,2]
[376092676,1753860643058,-649.86,0.00019671,2]
[376092678,1753860643067,-463.67,0.00019671,2]
[376092680,1753860643077,-460.0,0.00019671,2]
[376092682,1753860643087,-460.0,0.00019672,2]
[376092684,1753860643097,-460.0,0.00019672,2]
[376092686,1753860643106,-282.15998804,0.00019672,2]
[376092688,1753860643117,-460.0,0.00019672,2]
[376092690,1753860643127,-460.0,0.00019672,2]
[376092692,1753860643137,-500.0,0.00019672,2]
[376092694,1753860643147,-512.2,0.00019672,2]
[376092696,1753860643157,-1321.15,0.00019674,2]
[376092698,1753860643166,-460.0,0.00019674,2]
[376092700,1753860643176,-460.0,0.00019674,2]
[376092702,1753860643186,-788.07,0.00019674,2]
[376092704,1753860643195,-460.0,0.00019674,2]
[376092706,1753860643205,-718.99,0.00019674,2]
[376092710,1753860643215,-500.0,0.00019675,2]
[376092713,1753860643226,-15411.29948545,0.000197,2]
[376092718,1753860643236,-17920.00742647,0.00019844,2]
[376092721,1753860643246,-2823.48301626,0.000199,2]
[376092725,1753860643255,-842.99,0.00019944,2]
[376092729,1753860643268,-705.13,0.00019944,2]
[376092732,1753860643277,-788.73,0.00019944,2]
[376092735,1753860643287,-462.86,0.00019944,2]
[376092738,1753860643297,-460.0,0.00019944,2]
[376092741,1753860643307,-1445.48,0.00019945,2]
[376092744,1753860643316,-460.0,0.00019945,2]
[376092747,1753860643326,-649.86,0.00019945,2]
[376092750,1753860643338,-463.67,0.00019945,2]
[376092753,1753860643349,-460.0,0.00019945,2]
[376092756,1753860643358,-575.59,0.00019946,2]
[376092758,1753860643369,-460.0,0.00019946,2]
[376092774,1753860643496,-460.0,0.00019946,2]
[376092776,1753860643525,-512.2,0.00019946,2]
[376092778,1753860643535,-234.96607236,0.00019947,2]
[376092780,1753860643545,-1321.15,0.00019948,2]
[376092782,1753860643555,-460.0,0.00019948,2]
[376092784,1753860643564,-460.0,0.00019948,2]
[376092786,1753860643574,-788.07,0.00019948,2]
[376092788,1753860643583,-460.0,0.00019948,2]
[376092790,1753860643592,-718.99,0.00019948,2]
[376092792,1753860643602,-160.0,0.00020017,2]
[376092794,1753860643611,-526.76118213,0.00020017,2]
[376092796,1753860643624,-160.0,0.00020017,2]
[376092798,1753860643634,-160.0,0.00020017,2]
[376092800,1753860643643,-12639.5777639,0.00020017,2]
[376092803,1753860643659,-160.0,0.00020017,2]
[376092805,1753860643669,-160.0,0.00020017,2]
[376092807,1753860643679,-460.59675358,0.00020017,2]
[376092809,1753860643689,-160.0,0.00020017,2]
[376092811,1753860643699,-231.43925844,0.00020017,2]
[376092813,1753860643709,-160.0,0.00020017,2]
[376092815,1753860643719,-841.2246943,0.00020017,2]
[376092817,1753860643729,-216.14611358,0.00020017,2]
[376092819,1753860643739,-2823.48301608,0.00020141,2]
[376092821,1753860643748,-212.554672,0.00020187,2]
[376092823,1753860643758,-842.99,0.00020218,2]
[376092825,1753860643768,-705.13,0.00020218,2]
[376092827,1753860643778,-788.73,0.00020218,2]
[376092829,1753860643787,-462.86,0.00020218,2]
[376092831,1753860643796,-460.0,0.00020218,2]
[376092833,1753860643806,-1445.48,0.00020219,2]
[376092835,1753860643818,-460.0,0.00020219,2]
[376092837,1753860643828,-649.86,0.00020219,2]
[376092839,1753860643837,-463.67,0.00020219,2]
[376092841,1753860643847,-460.0,0.00020219,2]
[376092843,1753860643856,-460.0,0.0002022,2]
[376092845,1753860643869,-460.0,0.0002022,2]
[376092847,1753860643878,-512.2,0.0002022,2]
[376092849,1753860643887,-1321.15,0.00020222,2]
[376092851,1753860643897,-460.0,0.00020222,2]
[376092853,1753860643907,-460.0,0.00020222,2]
[376092855,1753860643916,-788.07,0.00020222,2]
[376092857,1753860643925,-460.0,0.00020222,2]
[376092859,1753860643935,-718.99,0.00020222,2]
[376092861,1753860643944,-2823.48301608,0.00020383,3]
[376092863,1753860643954,-571.79541741,0.000204,2]
[376092865,1753860643963,-842.99,0.00020492,2]
[376092867,1753860643973,-705.13,0.00020492,2]
[376092869,1753860643983,-788.73,0.00020492,2]
[376092871,1753860643992,-462.86,0.00020492,2]
[376092873,1753860644002,-460.0,0.00020492,2]
[376092875,1753860644011,-1445.48,0.00020493,2]
[376092877,1753860644021,-460.0,0.00020493,2]
[376092879,1753860644032,-649.86,0.00020493,2]
[376092881,1753860644041,-463.67,0.00020493,2]
[376092883,1753860644050,-460.0,0.00020493,2]
[376092885,1753860644060,-460.0,0.00020494,2]
[376092887,1753860644069,-460.0,0.00020494,2]
[376092889,1753860644079,-512.2,0.00020494,2]
[376092891,1753860644089,-1321.15,0.00020496,2]
[376092893,1753860644098,-460.0,0.00020496,2]
[376092895,1753860644108,-460.0,0.00020496,2]
[376092897,1753860644118,-788.07,0.00020496,2]
[376092898,1753860644128,-460.0,0.00020496,2]
[376092901,1753860644138,-718.99,0.00020496,2]
[376092903,1753860644149,-420.0,0.00020546,2]
[376092905,1753860644158,-2823.48301608,0.00020624,3]
[376092907,1753860644168,-675.14818806,0.00020667,2]
[376092909,1753860644178,-842.99,0.00020766,2]
[376092911,1753860644188,-705.13,0.00020766,2]
[376092913,1753860644197,-788.73,0.00020766,2]
[376092915,1753860644207,-462.86,0.00020766,2]
[376092917,1753860644217,-460.0,0.00020766,2]
[376092919,1753860644226,-1445.48,0.00020767,2]
[376092921,1753860644236,-460.0,0.00020767,2]
[376092923,1753860644245,-649.86,0.00020767,2]
[376092924,1753860644255,-463.67,0.00020767,2]
[376092926,1753860644269,-460.0,0.00020767,2]
[376092928,1753860644279,-460.0,0.00020768,2]
[376092931,1753860644289,-460.0,0.00020768,2]
[376092933,1753860644299,-512.2,0.00020768,2]
[376092934,1753860644309,-1321.15,0.0002077,2]
[376092937,1753860644320,-460.0,0.0002077,2]
[376092938,1753860644329,-460.0,0.0002077,2]
[376092940,1753860644340,-788.07,0.0002077,2]
[376092943,1753860644351,-460.0,0.0002077,2]
[376092945,1753860644360,-718.99,0.0002077,2]
[376092947,1753860644372,-2823.48301608,0.00020866,4]
[376092949,1753860644382,-47097.38989514,0.00021,2]
[376092951,1753860644392,-842.99,0.0002104,2]
[376092953,1753860644403,-705.13,0.0002104,2]
[376092955,1753860644413,-788.73,0.0002104,2]
[376092956,1753860644423,-462.86,0.0002104,2]
[376092958,1753860644433,-460.0,0.0002104,2]
[376092960,1753860644443,-500.0,0.0002104,2]
[376092962,1753860644452,-627.32653919,0.0002104,2]
[376092965,1753860644462,-214.09503225,0.0002104,2]
[376092966,1753860644472,-385.5605899,0.0002104,2]
[376092969,1753860644482,-500.0,0.0002104,2]
[376092971,1753860644492,-500.0,0.0002104,2]
[376092973,1753860644501,-500.0,0.0002104,2]
[376092975,1753860644511,-500.0,0.0002104,2]
[376092977,1753860644521,-500.0,0.0002104,2]
[376092979,1753860644530,-1445.48,0.00021041,2]
[376092981,1753860644540,-460.0,0.00021041,2]
[376092983,1753860644549,-649.86,0.00021041,2]
[376092985,1753860644559,-460.0,0.00021041,2]
[376092987,1753860644568,-460.0,0.00021042,2]
[376092989,1753860644577,-460.0,0.00021042,2]
[376092991,1753860644586,-512.2,0.00021042,2]
[376092992,1753860644595,-1321.15,0.00021044,2]
[376092994,1753860644605,-460.0,0.00021044,2]
[376092996,1753860644614,-460.0,0.00021044,2]
[376092999,1753860644625,-788.07,0.00021044,2]
[376093000,1753860644634,-460.0,0.00021044,2]
[376093002,1753860644644,-718.99,0.00021044,2]
[376093004,1753860644654,-2823.48301608,0.00021107,4]
[376093006,1753860644664,-200.0,0.0002111,15]
[376093008,1753860644673,-200.0,0.0002111,15]
[376093010,1753860644683,-200.0,0.0002111,15]
[376093012,1753860644693,-200.0,0.0002111,15]
[376093015,1753860644703,-200.0,0.0002111,15]
[376093017,1753860644713,-200.0,0.0002111,15]
[376093019,1753860644723,-200.0,0.0002111,15]
[376093021,1753860644732,-200.0,0.0002111,15]
[376093022,1753860644741,-200.0,0.0002111,15]
[376093025,1753860644753,-200.0,0.0002111,15]
[376093027,1753860644763,-200.0,0.0002111,15]
[376093029,1753860644772,-200.0,0.0002111,15]
[376093031,1753860644782,-200.0,0.0002111,15]
[376093033,1753860644791,-200.0,0.0002111,15]
[376093035,1753860644800,-200.0,0.0002111,15]
[376093037,1753860644810,-200.0,0.0002111,15]
[376093038,1753860644820,-200.0,0.0002111,15]
[376093040,1753860644830,-200.0,0.0002111,15]
[376093042,1753860644840,-200.0,0.0002111,15]
[376093044,1753860644849,-200.0,0.0002111,15]
[376093046,1753860644860,-200.0,0.0002111,15]
[376093048,1753860644870,-280.0,0.0002111,15]
[376093050,1753860644880,-842.99,0.00021314,2]
[376093052,1753860644890,-705.13,0.00021314,2]
[376093054,1753860644899,-788.73,0.00021314,2]
[376093056,1753860644908,-462.86,0.00021314,2]
[376093058,1753860644918,-460.0,0.00021314,2]
[376093060,1753860644928,-1445.48,0.00021315,2]
[376093062,1753860644938,-460.0,0.00021315,2]
[376093064,1753860644947,-649.86,0.00021315,2]
[376093066,1753860644957,-460.0,0.00021315,2]
[376093068,1753860644966,-460.0,0.00021316,2]
[376093070,1753860644976,-460.0,0.00021316,2]
[376093072,1753860644985,-512.2,0.00021316,2]
[376093074,1753860644995,-1321.15,0.00021318,2]
[376093076,1753860645004,-460.0,0.00021318,2]
[376093078,1753860645015,-460.0,0.00021318,2]
[376093080,1753860645024,-788.07,0.00021318,2]
[376093082,1753860645034,-460.0,0.00021318,2]
[376093084,1753860645043,-718.99,0.00021318,2]
[376093086,1753860645053,-2823.48301608,0.00021348,5]
[376093088,1753860645062,-160.0,0.00021416,2]
[376093090,1753860645072,-500.48698167,0.00021473,2]
[376093092,1753860645082,-408.14500492,0.00021473,2]
[376093094,1753860645092,-500.0,0.00021473,2]
[376093096,1753860645101,-500.0,0.00021473,2]
[376093098,1753860645111,-500.0,0.00021473,2]
[376093100,1753860645123,-500.0,0.00021473,2]
[376093102,1753860645133,-500.0,0.00021473,2]
[376093104,1753860645142,-500.0,0.00021473,2]
[376093106,1753860645152,-634.96292113,0.00021473,2]
[376093108,1753860645161,-500.0,0.00021473,2]
[376093110,1753860645171,-501.62526512,0.00021473,2]
[376093112,1753860645181,-500.0,0.00021473,2]
[376093114,1753860645190,-500.0,0.00021473,2]
[376093116,1753860645200,-500.0,0.00021473,2]
[376093118,1753860645209,-500.0,0.00021473,2]
[376093120,1753860645219,-500.0,0.00021473,2]
[376093122,1753860645228,-500.0,0.00021473,2]
[376093124,1753860645238,-500.0,0.00021473,2]
[376093126,1753860645248,-502.61642722,0.00021473,2]
[376093128,1753860645259,-500.0,0.00021473,2]
[376093130,1753860645271,-500.0,0.00021473,2]
[376093132,1753860645281,-500.0,0.00021473,2]
[376093134,1753860645290,-502.07853402,0.00021473,2]
[376093136,1753860645299,-514.09427306,0.00021473,2]
[376093138,1753860645309,-604.06271584,0.00021473,2]
[376093140,1753860645319,-501.67500468,0.00021473,2]
[376093142,1753860645329,-501.31460294,0.00021473,2]
[376093144,1753860645340,-501.29507856,0.00021473,2]
[376093145,1753860645349,-501.38271662,0.00021473,2]
[376093147,1753860645359,-226.36388906,0.00021473,2]
[376093150,1753860645369,-500.0,0.00021473,2]
[376093151,1753860645379,-500.0,0.00021473,2]
[376093153,1753860645389,-500.0,0.00021473,2]
[376093155,1753860645399,-501.2416567,0.00021473,2]
[376093157,1753860645408,-500.0,0.00021473,2]
[376093159,1753860645418,-500.0,0.00021473,2]
[376093161,1753860645427,-500.67139671,0.00021473,2]
[376093164,1753860645437,-500.0,0.00021473,2]
[376093165,1753860645447,-500.0,0.00021499,2]
[376093168,1753860645456,-500.0,0.00021499,2]
[376093169,1753860645466,-500.0,0.00021499,2]
[376093171,1753860645475,-286.03217571,0.00021499,2]
[376093173,1753860645485,-277185.12942657,0.000215,2]
[376093183,1753860645571,-121373.90578406,0.000215,2]
[376093185,1753860645583,-1134.9999536,0.000215,2]
[376093188,1753860645594,-1074.0,0.000215,2]
[376093191,1753860645723,-508.96855191,0.0002104,2]
[376093192,1753860645732,-500.0,0.0002104,2]
[376093193,1753860645741,-500.0,0.0002104,2]
[376093194,1753860645750,-311.18510432,0.0002104,2]
[376093195,1753860645761,-167.79853989,0.0002104,2]
[376093196,1753860645770,-297.20146011,0.0002104,2]
[376093197,1753860645781,-160.79853989,0.0002104,2]
[376093198,1753860645791,-500.0,0.0002104,2]
[376093199,1753860645800,-500.0,0.0002104,2]
[376093200,1753860645808,-170499.30676914,0.000215,2]
[376093201,1753860645820,-3941.26134969,0.000215,2]
[376093202,1753860645831,-368.43763188,0.000215,2]
[376093203,1753860645842,-35367.23215855,0.000215,2]
[376093284,1753860646632,-460.0,0.00018848,2]
[376093286,1753860646641,-200.0,0.00019226,15]
[376093288,1753860646651,-200.0,0.00019226,15]
[376093290,1753860646660,-200.0,0.00019226,15]
[376093292,1753860646670,-500.0,0.0002104,2]
[376093294,1753860646679,-4096.50891965,0.0002149,10]
[376093296,1753860646691,-2096.70108035,0.0002149,10]
[376093298,1753860646701,-7025.02692651,0.000215,2]
[376093300,1753860646710,-842.99,0.00021588,2]
[376093302,1753860646719,-705.13,0.00021588,2]
[376093304,1753860646728,-788.73,0.00021588,2]
[376093306,1753860646737,-462.86,0.00021588,2]
[376093308,1753860646746,-284.21101375,0.00021588,2]
[376093310,1753860646756,-1445.48,0.00021589,2]
[376093312,1753860646765,-460.0,0.00021589,2]
[376093314,1753860646774,-649.86,0.00021589,2]
[376093316,1753860646783,-460.0,0.00021589,2]
[376093318,1753860646796,-2823.48301608,0.0002159,5]
[376093321,1753860646805,-460.0,0.0002159,2]
[376093324,1753860646814,-460.0,0.0002159,2]
[376093327,1753860646823,-512.2,0.0002159,2]
[376093330,1753860646832,-695.14337138,0.00021592,2]
[376093333,1753860646862,-499.86972676,0.00021592,2]
[376093987,1753860729389,205.142468,0.00013699,2]
[376093988,1753860802683,95681.53705418,0.0001875,2]
[376093989,1753860844784,162.0,0.000187,2]
[376093990,1753860873216,164.4501209,0.000187,2]
[376093991,1753860903727,263.698534,0.00018127,2]
[376093992,1753860924707,1706.41921422,0.00018749,2]
[376093993,1753861140382,1493.11681239,0.00018748,2]
[376093995,1753861362119,1306.47721085,0.00018748,2]
[376094006,1753861577352,1143.16755952,0.00018748,2]
[376094010,1753861799712,1000.27161458,0.00018747,2]
[376094086,1753861832114,-300.0,0.00018845,2]
[376094088,1753861832125,-300.0,0.00018845,2]
[376094090,1753861832134,-300.0,0.00018845,2]
[376094092,1753861832144,-1200.0,0.00018845,2]
[376094094,1753861832154,-460.0,0.00018846,2]
[376094096,1753861832163,-541.12,0.00018846,2]
[376094098,1753861832172,-460.0,0.00018846,2]
[376094100,1753861832182,-460.0,0.00018846,2]
[376094102,1753861832191,-460.0,0.00018846,2]
[376094104,1753861832201,-460.0,0.00018846,2]
[376094106,1753861832211,-460.0,0.00018846,2]
[376094108,1753861832220,-460.0,0.00018846,2]
[376094110,1753861832230,-593.57521534,0.00018846,2]
[376094112,1753861832240,-460.0,0.00018846,2]
[376094114,1753861832250,-460.0,0.00018846,2]
[376094116,1753861832260,-460.0,0.00018846,2]
[376094118,1753861832270,-460.0,0.00018846,2]
[376094120,1753861832279,-460.0,0.00018847,2]
[376094122,1753861832289,-460.0,0.00018847,2]
[376094124,1753861832298,-460.0,0.00018847,2]
[376094126,1753861832308,-460.0,0.00018847,2]
[376094128,1753861832318,-452.24054878,0.00018847,2]
[376094130,1753861832330,-460.0,0.00018847,2]
[376094132,1753861832339,-460.0,0.00018847,2]
[376094134,1753861832349,-462.33251893,0.00018847,2]
[376094136,1753861832359,-460.0,0.00018847,2]
[376094138,1753861832369,-460.0,0.00018847,2]
[376094140,1753861832378,-460.0,0.00018847,2]
[376094142,1753861832388,-460.0,0.00018847,2]
[376094144,1753861832398,-460.0,0.00018847,2]
[376094146,1753861832408,-460.0,0.00018847,2]
[376094148,1753861832418,-460.0,0.00018847,2]
[376094151,1753861832427,-460.0,0.00018847,2]
[376094153,1753861832437,-460.0,0.00018847,2]
[376094155,1753861832447,-460.0,0.00018847,2]
[376094157,1753861832456,-460.0,0.00018847,2]
[376094159,1753861832466,-460.0,0.00018847,2]
[376094161,1753861832476,-449.55638864,0.00018847,2]
[376094163,1753861832486,-460.0,0.00018847,2]
[376094165,1753861832495,-460.0,0.00018847,2]
[376094167,1753861832505,-460.0,0.00018847,2]
[376094169,1753861832517,-217.7196317,0.00018847,2]
[376094171,1753861832527,-311.85848179,0.00018847,2]
[376094173,1753861832536,-460.0,0.00018847,2]
[376094175,1753861832550,-269.23863048,0.00018847,2]
[376094177,1753861832560,-460.0,0.00018847,2]
[376094180,1753861832571,-460.0,0.00018847,2]
[376094201,1753861832763,-291.41197713,0.00018847,2]
[376094203,1753861832773,-460.0,0.00018847,2]
[376094204,1753861832783,-493.49,0.00018847,2]
[376094206,1753861832792,-479.1023276,0.00018847,2]
[376094208,1753861832803,-460.0,0.00018847,2]
[376094210,1753861832814,-460.0,0.00018847,2]
[376094212,1753861832823,-460.0,0.00018847,2]
[376094214,1753861832835,-460.0,0.00018847,2]
[376094216,1753861832845,-460.0,0.00018847,2]
[376094218,1753861832854,-460.37,0.00018847,2]
[376094220,1753861832864,-460.0,0.00018847,2]
[376094222,1753861832874,-460.0,0.00018847,2]
[376094224,1753861832883,-507.61,0.00018847,2]
[376094226,1753861832893,-460.0,0.00018847,2]
[376094228,1753861832902,-460.0,0.00018847,2]
[376094230,1753861832912,-463.93788713,0.00018847,2]
[376094232,1753861832922,-460.0,0.00018847,2]
[376094234,1753861832931,-460.0,0.00018847,2]
[376094236,1753861832941,-504.85476836,0.00018847,2]
[376094238,1753861832952,-460.0,0.00018847,2]
[376094240,1753861832961,-460.0,0.00018847,2]
[376094242,1753861832972,-460.0,0.00018847,2]
[376094244,1753861832982,-460.0,0.00018847,2]
[376094246,1753861832991,-525.11606718,0.00018847,2]
[376094248,1753861833001,-460.0,0.00018847,2]
[376094250,1753861833011,-460.0,0.00018847,2]
[376094252,1753861833020,-513.75,0.00018847,2]
[376094254,1753861833030,-460.0,0.00018847,2]
[376094256,1753861833039,-460.0,0.00018847,2]
[376094258,1753861833050,-460.0,0.00018847,2]
[376094260,1753861833060,-460.0,0.00018847,2]
[376094262,1753861833071,-460.0,0.00018847,2]
[376094264,1753861833083,-196.56094878,0.00018847,2]
[376094266,1753861833093,-460.0,0.00018847,2]
[376094268,1753861833104,-460.0,0.00018847,2]
[376094270,1753861833115,-460.0,0.00018847,2]
[376094272,1753861833127,-460.0,0.00018847,2]
[376094274,1753861833138,-460.0,0.00018847,2]
[376094276,1753861833148,-460.0,0.00018847,2]
[376094278,1753861833158,-460.1,0.00018847,2]
[376094280,1753861833168,-460.0,0.00018847,2]
[376094282,1753861833179,-463.18994576,0.00018847,2]
[376094284,1753861833190,-502.56,0.00018847,2]
[376094286,1753861833200,-460.0,0.00018847,2]
[376094288,1753861833209,-460.0,0.00018847,2]
[376094290,1753861833218,-479.16,0.00018847,2]
[376094292,1753861833228,-460.0,0.00018847,2]
[376094294,1753861833238,-460.0,0.00018847,2]
[376094296,1753861833248,-460.0,0.00018847,2]
[376094298,1753861833257,-460.0,0.00018847,2]
[376094300,1753861833267,-454.88299416,0.00018847,2]
[376094302,1753861833277,-460.0,0.00018847,2]
[376094304,1753861833288,-460.0,0.00018847,2]
[376094306,1753861833298,-510.03,0.00018847,2]
[376094308,1753861833308,-468.77970015,0.00018847,2]
[376094310,1753861833317,-460.0,0.00018847,2]
[376094312,1753861833331,-460.0,0.00018847,2]
[376094313,1753861833341,-460.0,0.00018847,2]
[376094315,1753861833351,-460.0,0.00018847,2]
[376094318,1753861833362,-460.0,0.00018847,2]
[376094319,1753861833373,-460.0,0.00018847,2]
[376094321,1753861833384,-460.0,0.00018847,2]
[376094323,1753861833393,-460.0,0.00018847,2]
[376094325,1753861833403,-524.02048988,0.00018847,2]
[376094327,1753861833412,-460.0,0.00018847,2]
[376094329,1753861833422,-460.0,0.00018847,2]
[376094331,1753861833431,-460.0,0.00018847,2]
[376094333,1753861833441,-460.0,0.00018847,2]